bitfinex/quotes_ETHUSD_20220218
["timestamp","ask_amount","ask_price","bid_price","bid_amount"]
[1645182500862,1.03656,2895.9,2894.7,20.99937622]
[1645182501111,0.00457399,2895.8,2894.8,20.03]
[1645182501317,0.00457399,2895.8,2894.9,7.8699]
[1645182501507,0.00457399,2895.8,2895.0,1.8752]
[1645182501903,0.1726,2896.3,2895.0,1.8752]
[1645182501904,0.1726,2896.3,2895.0,21.9052]
[1645182502109,0.00457438,2895.8,2895.0,21.9052]
[1645182502308,0.00457438,2895.8,2895.3,20.03]
[1645182502505,0.00457438,2895.8,2895.3,20.526]
[1645182502704,0.00457438,2895.8,2895.4,20.03]
[1645182502903,0.00457438,2895.8,2895.4,21.2014478]
[1645182503102,3.5,2897.1,2895.4,20.4014478]
[1645182503387,3.5,2897.1,2895.4,1.4714478]
[1645182503859,0.00457457,2895.8,2895.4,21.5014478]
[1645182504309,3.5,2896.8,2895.4,21.5014478]
[1645182504507,0.00457457,2895.8,2895.4,21.5014478]
[1645182504710,0.00457457,2895.8,2895.4,19.93204641]
[1645182505658,3.6726,2897.1,2896.6,0.8632462]
[1645182505856,3.6726,2897.1,2895.3,2.3741]
[1645182505857,1.9000592,2897.1,2895.3,2.3741]
[1645182506056,0.86364,2897.0,2895.4,20.03]
[1645182506260,0.1726,2896.9,2895.5,20.03]
[1645182506454,0.1726,2896.9,2895.3,2.6741]
[1645182506855,0.00280844,2896.3,2896.2,1.13535642]
[1645182507854,0.1726,2896.9,2896.2,1.13535642]
[1645182508258,0.00457852,2896.4,2896.2,1.13535642]
[1645182509117,0.1726,2896.9,2896.2,1.13535642]
[1645182509317,0.00457849,2896.4,2895.4,0.25]
[1645182509520,0.1726,2896.3,2895.4,0.25]
[1645182509716,0.1726,2896.3,2895.1,0.0687088]
[1645182509717,7.22412,2896.2,2895.1,0.0687088]
[1645182510013,0.86422,2895.8,2895.1,0.0687088]
[1645182510213,0.6686,2895.7,2895.1,0.0687088]
[1645182510411,0.6686,2895.7,2894.7,1.13107968]
[1645182510618,0.86429,2895.6,2894.7,1.13107968]
[1645182510814,0.6686,2895.5,2894.7,1.13107968]
[1645182511013,0.86421,2895.3,2894.7,1.13107968]
[1645182511215,1.03681,2895.3,2894.7,1.13107968]
[1645182511412,1.03681,2895.3,2894.3,9.0826]
[1645182511413,1.03681,2895.3,2895.2,0.89100751]
[1645182511617,0.1726,2895.6,2895.2,0.89100751]
[1645182511826,0.00280356,2895.8,2895.2,0.89100751]
[1645182512013,0.00280356,2895.8,2895.3,0.00382518]
[1645182512654,3.6726,2896.3,2895.3,0.00382518]
[1645182512861,0.00455918,2895.8,2895.3,0.00382518]
[1645182513157,0.00455918,2895.8,2895.3,1.72762518]
[1645182513559,0.00455918,2895.8,2895.3,2.02762518]
[1645182513759,0.00455918,2895.8,2895.3,22.05762518]
[1645182513956,3.6726,2896.8,2896.5,0.84425845]
[1645182514158,0.86371,2896.7,2896.5,0.19259181]
[1645182514361,0.86371,2896.7,2895.4,23.0834]
[1645182514362,0.86371,2896.7,2895.6,0.25]
[1645182514560,0.86371,2896.7,2895.5,27.8924]
[1645182515261,0.00455904,2896.2,2895.5,27.8924]
[1645182515460,0.00455904,2896.2,2895.6,0.87679601]
[1645182515661,0.00455904,2896.2,2895.6,0.97679601]
[1645182516117,0.00455904,2896.2,2895.6,21.00679601]
[1645182516310,0.1726,2896.8,2895.6,21.00679601]
[1645182516511,0.84742601,2897.2,2895.6,21.00679601]
[1645182516512,0.00455916,2896.0,2895.6,21.00679601]
[1645182516713,0.00455916,2896.0,2895.6,21.30679601]
[1645182517315,0.00455916,2896.0,2895.8,20.03]
[1645182517514,3.5,2897.0,2896.6,0.89949809]
[1645182517714,0.86357,2897.1,2896.6,0.89949809]
[1645182518915,0.00455858,2897.0,2896.6,0.89949809]
[1645182519850,0.86357,2897.1,2896.6,0.89949809]
[1645182520253,0.86364,2896.8,2896.6,0.89949809]
[1645182521256,0.86819868,2896.8,2896.6,0.89949809]
[1645182521862,0.86819868,2896.8,2895.7,0.25]
[1645182522065,4.05282578,2896.7,2895.5,7.8624]
[1645182522259,0.86382,2896.4,2895.5,7.8624]
[1645182522664,0.86837895,2896.4,2895.5,7.8624]
[1645182522857,0.86837895,2896.4,2895.5,27.8924]
[1645182523061,0.86837895,2896.4,2895.9,0.93163582]
[1645182523459,0.38122643,2896.3,2895.9,0.93163582]
[1645182523710,0.38578544,2896.3,2895.9,0.93163582]
[1645182523904,0.38122643,2896.2,2895.9,0.93163582]
[1645182524105,0.38122643,2896.1,2895.9,0.93163582]
[1645182524307,0.38122643,2896.1,2895.5,7.8624]
[1645182524512,3.6726,2896.0,2895.1,0.06841301]
[1645182524715,3.6726,2896.0,2894.5,0.02]
[1645182524716,5.496,2895.9,2894.5,0.02]
[1645182524907,3.6726,2895.8,2894.5,0.02]
[1645182525107,5.0,2895.4,2894.2,0.012099]
[1645182525410,1.53790412,2894.0,2893.9,1.01258892]
[1645182525611,1.53790412,2894.0,2893.9,0.0582804]
[1645182525814,1.53790412,2894.0,2892.9,0.1082804]
[1645182526009,1.53790412,2894.0,2893.0,1.06304533]
[1645182526209,1.53790412,2894.0,2893.1,25.03]
[1645182526415,1.53790412,2894.0,2893.2,1.06304533]
[1645182526710,1.53790412,2894.0,2893.3,20.03]
[1645182526909,1.53790412,2894.0,2893.5,20.03]
[1645182527108,1.53790412,2894.0,2893.5,20.33]
[1645182527375,1.53790412,2894.0,2892.9,3.5651604]
[1645182527569,1.53790412,2894.0,2892.9,0.1082804]
[1645182527871,1.53790412,2894.0,2893.0,1.06282467]
[1645182528167,1.53790412,2894.0,2893.1,1.06282467]
[1645182528369,1.53790412,2894.0,2893.9,0.95130666]
[1645182529271,1.53790412,2894.0,2893.4,0.00448233]
[1645182529471,1.53790412,2894.0,2892.9,0.25]
[1645182529672,1.53790412,2894.0,2893.0,1.05658412]
[1645182529877,1.53790412,2894.0,2893.1,1.06037377]
[1645182530073,1.53790412,2894.0,2893.2,1.05658412]
[1645182530274,1.53790412,2894.0,2893.6,0.92164717]
[1645182530672,1.53790412,2894.0,2893.7,0.00378965]
[1645182532505,1.53790412,2894.0,2893.9,0.01507384]
[1645182537655,1.53790412,2894.0,2893.8,0.00446775]
[1645182537852,1.53790412,2894.0,2893.7,0.00378965]
[1645182538055,3.5,2895.1,2893.8,2.5]
[1645182538056,0.1726,2895.1,2893.8,2.5]
[1645182538255,4.36412,2895.3,2893.8,2.5]
[1645182538256,0.36304585,2895.0,2893.9,2.83239487]
[1645182538455,0.36304585,2894.9,2893.9,21.80328965]
[1645182538726,3.5,2895.2,2893.9,21.80328965]
[1645182538727,0.36304585,2894.8,2893.9,1.77328965]
[1645182538920,0.36304585,2894.7,2893.9,1.77328965]
[1645182539117,1.72856,2895.0,2893.9,1.77328965]
[1645182539314,0.36306694,2894.9,2894.2,0.00446752]
[1645182539515,0.86429,2894.7,2894.2,0.00446752]
[1645182539715,0.36306694,2894.6,2894.2,0.00446752]
[1645182540117,0.1726,2894.9,2894.2,0.00446752]
[1645182540323,0.36301185,2894.8,2893.9,0.00378965]
[1645182540528,0.36301185,2894.8,2894.3,0.00446749]
[1645182540529,5.17505402,2894.7,2894.3,0.00446749]
[1645182540722,0.85901185,2894.6,2894.3,0.00446749]
[1645182540918,0.53561185,2894.5,2894.3,0.00446749]
[1645182541121,0.36301185,2894.4,2894.3,0.00446749]
[1645182541317,0.53561185,2894.4,2894.3,0.00446749]
[1645182541519,0.8645386,2894.3,2893.7,0.00378965]
[1645182541719,0.36301185,2894.2,2893.8,0.08489556]
[1645182541917,0.53561185,2894.2,2893.8,0.08489556]
[1645182542121,0.36301185,2894.1,2893.8,0.08489556]
[1645182542753,0.36301185,2894.1,2893.7,0.00378965]
[1645182542754,1.22758185,2894.1,2893.7,0.00378965]
[1645182542959,0.86457,2894.1,2893.8,0.00446775]
[1645182543154,0.1726,2894.5,2893.8,0.00446775]
[1645182543354,0.36278955,2894.4,2893.8,0.00446775]
[1645182543957,0.36278955,2894.4,2893.7,0.00378965]
[1645182544157,0.36278955,2894.4,2894.0,0.00446766]
[1645182544559,0.86447,2894.2,2894.0,0.00446766]
[1645182545058,0.1726,2894.5,2893.7,0.00378965]
[1645182545255,0.1726,2894.5,2894.0,0.00432023]
[1645182545462,0.1726,2894.5,2894.1,1.08706733]
[1645182545658,1.22709445,2894.4,2894.1,0.53694926]
[1645182545863,0.1726,2894.5,2894.1,0.53694926]
[1645182546103,0.3626107,2894.4,2894.1,0.53694926]
[1645182546304,0.496,2894.6,2893.5,1.7194]
[1645182546507,0.496,2894.6,2894.2,2.013e-05]
[1645182546508,3.86262504,2894.5,2894.2,2.013e-05]
[1645182546818,0.00077987,2894.0,2893.7,0.08209472]
[1645182547004,0.6686,2893.9,2893.7,0.08209472]
[1645182547208,0.36262504,2893.8,2893.7,0.08209472]
[1645182547405,0.85862504,2893.8,2893.4,0.90636903]
[1645182547608,2.22559,2893.8,2892.8,7.3311]
[1645182547809,0.86505,2893.5,2892.8,7.3311]
[1645182548009,3.45321972,2893.4,2892.8,7.3311]
[1645182548206,3.0906317,2893.4,2892.8,7.2811]
[1645182548406,0.496,2893.4,2892.8,6.6811]
[1645182548605,0.496,2893.4,2892.9,0.96440034]
[1645182548812,0.1726,2893.9,2892.9,0.96440034]
[1645182548813,1.7292838,2893.7,2892.9,0.96440034]
[1645182549009,1.7292838,2893.7,2893.0,0.0013563]
[1645182549211,0.8646538,2893.7,2892.6,0.00680572]
[1645182549414,6.08790473,2893.6,2892.6,0.00680572]
[1645182549614,0.53529473,2893.5,2892.7,0.04092649]
[1645182549859,0.8648916,2893.4,2892.7,0.04092649]
[1645182550058,0.1728,2893.9,2892.7,0.04092649]
[1645182550259,0.37130703,2893.8,2893.1,1.13737022]
[1645182550462,5.60061703,2893.8,2893.1,1.13737022]
[1645182550661,0.37130703,2893.7,2893.1,1.13737022]
[1645182550857,2.27344613,2893.7,2893.1,1.13737022]
[1645182551057,1.40871703,2893.7,2892.7,0.04092649]
[1645182551258,0.37130703,2893.6,2892.7,0.04092649]
[1645182551459,1.90211,2893.8,2892.7,0.04092649]
[1645182551460,3.45923,2893.5,2892.7,0.04092649]
[1645182551858,1.729464,2893.4,2892.7,0.04092649]
[1645182552059,0.864764,2893.4,2892.7,1.07531636]
[1645182552458,0.864764,2893.4,2892.8,0.04035807]
[1645182552459,3.4591333,2893.4,2892.8,0.04035807]
[1645182552658,3.4591333,2893.4,2893.1,0.01385498]
[1645182552859,0.8648,2893.2,2893.1,0.01385498]
[1645182553061,1.90205,2893.9,2893.1,0.01385498]
[1645182553268,0.3612332,2893.8,2893.1,0.01385498]
[1645182553460,1.2259432,2893.8,2893.1,0.01385498]
[1645182553707,0.3612332,2893.7,2893.1,0.01385498]
[1645182553909,0.86471,2893.8,2893.1,0.01385498]
[1645182554107,1.72925,2893.9,2893.2,1.13656894]
[1645182554306,0.36133623,2893.8,2893.2,1.13656894]
[1645182555008,0.86462,2893.6,2893.2,1.13656894]
[1645182555207,1.72925,2893.9,2893.2,1.13656894]
[1645182555607,1.72925,2893.9,2893.7,0.95432279]
[1645182555812,1.72925,2893.9,2893.1,0.01385498]
[1645182556208,0.86528987,2894.0,2893.1,0.01385498]
[1645182556408,0.00077987,2894.0,2893.1,0.01385498]
[1645182556806,0.00077987,2894.0,2893.5,1.12221285]
[1645182557205,0.86529987,2894.0,2893.5,1.12221285]
[1645182557454,0.00077987,2894.0,2893.5,1.12221285]
[1645182557857,0.00077987,2894.0,2893.5,1.42221285]
[1645182558053,0.11219357,2894.4,2893.5,1.42221285]
[1645182558255,0.11219357,2894.4,2893.5,1.12221285]
[1645182558663,0.11219357,2894.4,2894.3,0.91041981]
[1645182558862,0.00445924,2894.5,2894.3,0.91041981]
[1645182559262,0.86893924,2894.5,2893.4,1.50220341]
[1645182559463,0.8644595,2894.4,2893.4,1.50220341]
[1645182559861,0.8644595,2894.4,2893.8,0.06691432]
[1645182560261,0.8644595,2894.4,2894.1,1.00390362]
[1645182560661,0.85583957,2894.4,2894.1,1.00390362]
[1645182560860,2.5932944,2894.6,2894.1,1.00390362]
[1645182561115,0.00445972,2894.5,2894.2,0.00375071]
[1645182561908,0.86432,2894.8,2894.2,1.83035071]
[1645182562109,0.86432,2894.8,2894.7,1.13014459]
[1645182562310,1.72856,2895.2,2894.7,1.13014459]
[1645182562707,0.86426,2895.0,2894.7,1.13014459]
[1645182563309,0.86871958,2895.0,2894.7,1.13014459]
[1645182563509,0.00445958,2895.0,2894.7,1.13014459]
[1645182564015,0.00445958,2895.0,2894.7,1.43014459]
[1645182564319,0.64311211,2895.7,2894.7,1.43014459]
[1645182564612,0.00445958,2895.0,2894.7,1.43014459]
[1645182565057,0.00445958,2895.0,2894.8,0.86394]
[1645182565265,0.00445958,2895.0,2894.3,0.06691089]
[1645182565266,0.1726,2894.9,2894.3,0.06691089]
[1645182565458,0.1726,2894.9,2893.8,0.00375071]
[1645182565459,0.6492843,2894.6,2893.8,0.00375071]
[1645182565664,0.1726,2894.5,2893.8,0.00188261]
[1645182565859,1.1452843,2894.6,2894.3,0.06691162]
[1645182566057,0.86451,2894.5,2894.3,0.06691162]
[1645182566261,1.72901,2894.5,2894.3,0.06691162]
[1645182566654,1.72901,2894.5,2893.8,0.00188261]
[1645182566856,0.86451,2894.5,2893.8,0.00188261]
[1645182567056,0.8645045,2894.4,2893.8,0.06879693]
[1645182567258,0.86459,2894.3,2893.8,0.06879693]
[1645182567457,1.72925,2894.2,2893.8,0.06879693]
[1645182567656,3.45852,2894.2,2893.8,1.06126082]
[1645182567855,1.72927,2894.2,2893.8,1.06126082]
[1645182568055,1.72927,2894.2,2893.8,0.9943465]
[1645182568457,1.72925,2894.1,2893.8,0.00188261]
[1645182568712,0.86461,2894.0,2893.5,0.00188261]
[1645182568911,1.72925,2894.1,2893.5,0.00188261]
[1645182569111,1.72925,2894.1,2892.8,0.68968132]
[1645182569307,1.72925,2894.1,2892.9,20.03188261]
[1645182569508,0.86461,2894.2,2893.8,0.96183011]
[1645182569707,0.86461,2894.2,2893.9,0.00188261]
[1645182570309,0.1726,2894.4,2893.9,0.00188261]
[1645182570310,1.03701,2894.4,2893.9,0.00188261]
[1645182570510,1.50977825,2894.4,2893.9,0.00188261]
[1645182570809,1.72904,2894.3,2893.9,0.00188261]
[1645182571007,2.59357,2894.3,2893.9,0.00188261]
[1645182571211,0.64536825,2894.2,2893.9,0.00188261]
[1645182571615,0.86451,2894.1,2893.9,0.00188261]
[1645182572007,2.00585865,2894.4,2893.8,0.96183011]
[1645182572008,1.14136825,2894.4,2893.8,0.96183011]
[1645182572656,0.64536825,2894.4,2893.8,0.96183011]
[1645182572855,1.50979825,2894.4,2893.8,0.96183011]
[1645182573057,0.86443,2894.4,2893.8,0.96183011]
[1645182574268,0.6481703,2894.5,2893.8,0.96183011]
[1645182574467,0.00280205,2894.5,2893.8,20.99183011]
[1645182574762,0.00280205,2894.5,2893.9,20.03]
[1645182574963,0.00280205,2894.5,2893.8,1.26183011]
[1645182575164,0.6492843,2894.6,2893.8,1.26183011]
[1645182575367,0.00417464,2894.5,2894.4,1.13223716]
[1645182576310,1.29465255,2894.6,2894.4,1.13223716]
[1645182576510,0.65345909,2894.6,2894.4,1.13223716]
[1645182577510,0.6492843,2894.6,2894.4,1.13223716]
[1645182577712,0.65345906,2894.6,2894.4,1.13223716]
[1645182578113,0.3618622,2894.5,2894.4,1.13223716]
[1645182578311,0.47392126,2894.6,2894.4,1.13223716]
[1645182578816,0.4697465,2894.6,2894.4,1.13223716]
[1645182579016,0.47391452,2894.6,2894.4,1.13223716]
[1645182579216,0.47391452,2894.6,2894.5,20.03]
[1645182579524,0.64536825,2895.1,2894.5,20.03]
[1645182579718,0.64536825,2895.3,2894.5,20.03]
[1645182580154,0.64536825,2895.2,2894.5,20.03]
[1645182580361,0.64536825,2895.4,2894.6,20.03]
[1645182580557,0.64536825,2895.4,2894.6,22.05776]
[1645182580758,0.86207476,2895.7,2894.9,4.5]
[1645182580958,0.1726,2896.1,2895.0,21.802]
[1645182580959,0.86207476,2895.9,2895.0,21.802]
[1645182581261,0.86207476,2896.1,2895.2,20.03]
[1645182581457,0.00279819,2895.4,2895.3,0.86369]
[1645182581667,0.00279819,2895.4,2895.3,21.93116113]
[1645182581861,4.79311213,2896.6,2895.5,20.03]
[1645182582067,1.67921989,2896.9,2895.7,20.03]
[1645182582357,3.6726,2897.1,2895.8,20.03]
[1645182582358,3.5,2897.1,2895.8,20.03]
[1645182582557,0.84742601,2897.2,2895.8,20.03]
[1645182582757,0.84742601,2897.2,2896.0,20.03]
[1645182582961,0.84742601,2897.2,2896.2,20.03]
[1645182583158,0.84742601,2897.2,2896.3,20.03]
[1645182583365,0.84742601,2897.2,2896.4,0.496]
[1645182583604,0.1726,2897.7,2896.5,20.03]
[1645182583814,3.6726,2897.7,2896.6,0.86338]
[1645182584017,0.07045566,2896.5,2895.9,1.03158196]
[1645182584213,0.07045566,2896.5,2896.4,0.95058894]
[1645182584510,0.07045566,2896.5,2895.7,1.8263]
[1645182585512,0.86382,2896.4,2895.7,1.8263]
[1645182585710,0.86382,2896.4,2895.8,0.92591452]
[1645182586309,0.00446372,2896.2,2895.8,0.92591452]
[1645182586510,0.00446372,2896.2,2895.8,21.18161774]
[1645182587358,0.07045566,2896.5,2895.8,1.15161774]
[1645182587559,0.00446378,2896.1,2895.9,0.02835881]
[1645182587760,0.86838378,2896.1,2895.9,0.02835881]
[1645182588553,0.86392,2896.1,2895.9,0.02835881]
[1645182588761,0.86838378,2896.1,2895.9,0.02835881]
[1645182589163,3.5,2896.0,2895.9,0.02835881]
[1645182589361,3.6726,2896.0,2895.9,0.02835881]
[1645182589559,0.1726,2896.0,2895.9,0.02835881]
[1645182590161,0.1726,2896.0,2895.9,1.16211837]
[1645182590361,0.00446381,2896.1,2895.9,1.16211837]
[1645182590961,0.64627767,2896.1,2895.9,0.02835881]
[1645182591204,0.00446378,2896.1,2895.9,0.02835881]
[1645182591404,1.53478927,2896.1,2895.9,0.02835881]
[1645182591804,0.86172549,2896.0,2895.9,0.02835881]
[1645182592206,1.53032549,2896.1,2895.9,0.02835881]
[1645182592404,0.67306378,2896.1,2895.9,0.04441717]
[1645182592608,1.53709378,2896.1,2895.9,0.04441717]
[1645182593005,2.39881927,2896.1,2895.9,0.04441717]
[1645182593406,0.86172549,2896.0,2895.9,0.04441717]
[1645182594011,3.09267018,2896.1,2895.9,0.04441717]
[1645182594212,3.95439567,2896.1,2895.9,0.04441717]
[1645182594415,0.86172549,2896.0,2895.9,0.01501717]
[1645182594617,0.86172549,2896.0,2895.8,0.01416068]
[1645182594618,4.5,2895.9,2895.8,0.01416068]
[1645182594858,5.1686,2895.9,2895.8,0.01416068]
[1645182595057,6.46112915,2895.9,2895.8,0.01416068]
[1645182595261,1.53217682,2895.9,2895.8,0.01416068]
[1645182595657,0.6686,2895.9,2895.8,0.01416068]
[1645182597562,1.7284098,2895.7,2895.0,1.0874073]
[1645182597766,0.64881031,2895.4,2895.0,1.0874073]
[1645182597961,0.64881031,2895.5,2895.0,1.0874073]
[1645182598166,0.64881031,2895.8,2895.0,1.3874073]
[1645182598360,0.64881031,2895.7,2895.0,1.3874073]
[1645182598608,0.1726,2896.1,2895.0,1.3874073]
[1645182598609,0.6532996,2895.5,2895.0,1.3874073]
[1645182598813,0.17888018,2895.4,2895.0,1.0874073]
[1645182599015,0.83217978,2895.5,2895.0,1.0874073]
[1645182599212,0.17888018,2895.4,2895.0,1.0874073]
[1645182599613,0.17888018,2895.3,2895.0,1.0874073]
[1645182599812,0.17888018,2895.2,2895.0,1.0874073]
[1645182600011,0.17888018,2895.1,2895.0,1.0874073]
[1645182600422,0.65329965,2895.5,2895.0,1.0874073]
[1645182600423,0.17888018,2895.4,2895.0,1.0874073]
[1645182600714,0.17888018,2895.4,2895.0,1.3874073]
[1645182601315,0.17888018,2895.3,2895.0,1.0874073]
[1645182601516,0.17888018,2895.2,2895.0,1.0874073]
[1645182601715,0.17888018,2895.1,2895.0,1.0874073]
[1645182601915,0.17888018,2895.3,2895.0,1.0874073]
[1645182602116,0.64881031,2895.4,2895.0,1.0874073]
[1645182602360,1.69628973,2895.5,2894.6,1.1504]
[1645182602560,0.64881031,2895.1,2894.6,1.1504]
[1645182602757,0.64881031,2895.1,2894.5,8.5592]
[1645182603869,0.64881031,2895.1,2894.3,0.00449082]
[1645182603870,0.64881031,2894.9,2894.3,0.00449082]
[1645182604065,0.82769049,2894.8,2894.3,0.00449082]
[1645182604265,0.17888018,2894.7,2893.9,1.5532]
[1645182604463,0.17888018,2894.6,2894.3,0.00449077]
[1645182604663,0.17888018,2894.5,2894.3,0.00449077]
[1645182604863,1.72882,2894.7,2894.4,0.87136347]
[1645182605065,0.1792242,2894.6,2894.3,0.00449077]
[1645182605469,0.1792242,2894.6,2893.9,1.8532]
[1645182605661,0.1792242,2894.6,2893.9,0.30532907]
[1645182605864,0.1792242,2894.6,2893.8,6.8183]
[1645182605865,0.8644,2894.5,2893.8,6.8183]
[1645182606107,0.1792242,2894.4,2894.1,0.84404586]
[1645182606308,0.1792242,2894.3,2894.1,0.84404586]
[1645182606515,1.31741031,2895.0,2894.1,0.84404586]
[1645182606709,0.64881031,2894.7,2894.1,0.84404586]
[1645182606910,1.29509499,2894.6,2894.1,0.84404586]
[1645182607109,1.01471468,2894.5,2894.1,0.84404586]
[1645182607309,0.15028468,2894.4,2893.3,0.25]
[1645182607509,0.15028468,2894.4,2893.1,3.66461036]
[1645182607711,0.15028468,2894.4,2893.2,8.60854676]
[1645182607914,0.15028468,2894.4,2893.3,1.31042937]
[1645182608118,0.64881031,2894.5,2893.3,1.31042937]
[1645182608316,5.16355499,2894.5,2893.3,1.31042937]
[1645182608512,5.16355499,2894.5,2893.3,0.00188261]
[1645182608513,0.8645971,2894.3,2893.3,0.00188261]
[1645182608718,0.15028468,2894.2,2893.3,2.35794621]
[1645182608914,0.64628468,2894.2,2893.3,2.35794621]
[1645182609117,1.01485468,2894.1,2893.3,2.35794621]
[1645182609313,0.15028468,2894.0,2893.7,0.00449593]
[1645182609716,1.01489468,2894.0,2893.7,0.00449593]
[1645182609969,0.64628468,2893.9,2893.7,0.00449593]
[1645182610263,0.64628468,2893.9,2893.1,0.00188261]
[1645182610264,1.01492468,2893.8,2893.1,0.00188261]
[1645182610462,0.15028468,2893.7,2893.1,0.08017538]
[1645182610672,0.86469,2893.6,2893.1,0.08017538]
[1645182610966,2.39798,2893.9,2893.3,0.90577696]
[1645182610967,0.15028468,2893.5,2893.3,0.90577696]
[1645182611163,0.496,2893.9,2893.3,0.90577696]
[1645182611369,0.15018924,2893.8,2893.3,0.90577696]
[1645182611564,0.15018924,2893.8,2893.3,0.90989707]
[1645182611765,0.15018924,2893.8,2893.3,0.00412011]
[1645182612363,0.15018924,2893.7,2893.4,0.01500984]
[1645182612565,0.15018924,2893.7,2893.5,0.0154797]
[1645182613616,0.00411898,2894.1,2893.5,0.0154797]
[1645182613823,0.86508041,2894.7,2893.5,0.0154797]
[1645182613824,0.15001266,2894.0,2893.5,0.0154797]
[1645182614121,0.1726,2894.6,2893.6,0.86429]
[1645182614122,0.00411902,2894.1,2893.6,0.86429]
[1645182614420,0.00411902,2894.1,2893.7,1.164279]
[1645182614620,0.00411902,2894.1,2893.9,20.03]
[1645182615022,0.64881031,2895.1,2893.9,20.33]
[1645182615220,0.00414443,2894.1,2893.9,20.33414484]
[1645182615521,0.00414443,2894.1,2894.0,0.8641796]
[1645182615729,0.00414443,2894.1,2894.0,21.1941796]
[1645182615923,0.00414443,2894.1,2894.0,24.6941796]
[1645182616122,0.64881031,2895.2,2894.0,24.6941796]
[1645182616320,0.64881031,2895.2,2894.1,0.86415]
[1645182616522,0.0041444,2894.2,2894.1,1.16415]
[1645182617122,0.0041444,2894.2,2894.1,0.3]
[1645182617353,0.64881031,2895.2,2894.1,0.3]
[1645182617556,0.64881031,2895.2,2893.9,1.7282589]
[1645182617557,0.96395432,2895.2,2894.6,0.87892604]
[1645182617756,0.79135432,2895.2,2894.6,0.87892604]
[1645182617963,0.79135432,2895.2,2894.1,6.787]
[1645182617964,0.14254401,2895.1,2894.1,7.087]
[1645182618159,0.64881031,2895.1,2894.1,7.087]
[1645182618556,1.65558432,2895.2,2894.1,7.087]
[1645182618760,0.14254401,2895.0,2894.1,7.087]
[1645182619061,0.00414241,2894.7,2894.1,7.087]
[1645182619258,0.14254401,2894.6,2894.1,7.087]
[1645182619459,0.14254401,2894.6,2894.1,27.117]
[1645182619659,0.14254401,2894.6,2894.1,7.087]
[1645182620064,1.51304031,2895.2,2894.5,1.10818738]
[1645182620261,1.00685217,2895.1,2894.5,1.40818738]
[1645182620459,0.14255217,2895.0,2894.5,1.40818738]
[1645182620868,1.00685217,2895.0,2894.5,1.40818738]
[1645182621108,0.14255217,2894.9,2894.5,1.40818738]
[1645182621308,0.14255217,2894.8,2894.5,1.40818738]
[1645182622510,0.14255217,2894.7,2894.5,1.40818738]
[1645182623211,0.14255217,2894.7,2894.4,1.957e-05]
[1645182623519,0.1726,2894.6,2894.4,1.957e-05]
[1645182623918,0.79136248,2894.5,2894.4,1.957e-05]
[1645182624317,0.14255217,2894.5,2894.4,1.957e-05]
[1645182625758,0.14255217,2894.5,2894.2,0.89738523]
[1645182626358,0.14255217,2894.4,2894.2,0.89738523]
[1645182626560,0.14255217,2894.3,2894.2,0.89738523]
[1645182628714,0.13800667,2894.3,2894.2,0.89738523]
[1645182629315,3.53800667,2894.3,2894.2,0.89738523]
[1645182629518,4.40245667,2894.3,2893.9,0.25]
[1645182629715,0.13800667,2894.2,2893.9,0.00433441]
[1645182630714,0.13800667,2894.2,2894.0,0.98405883]
[1645182630913,0.14234039,2894.2,2893.9,0.00433422]
[1645182631221,0.13800667,2894.1,2893.9,0.00433422]
[1645182631619,0.86456,2894.0,2893.9,0.00433422]
[1645182631817,1.00256667,2894.0,2893.3,1.1729]
[1645182632014,0.13800667,2893.9,2893.3,1.14617547]
[1645182632654,0.13800667,2893.8,2893.2,7.0151]
[1645182632866,0.13800667,2893.7,2893.2,7.0151]
[1645182633062,0.13800667,2893.7,2893.1,0.08236994]
[1645182633063,0.31080667,2893.6,2892.6,0.00680572]
[1645182633258,0.31080667,2893.6,2892.8,0.00188261]
[1645182633259,4.45961698,2893.6,2892.8,0.00188261]
[1645182633455,4.45961698,2893.6,2892.6,0.00680572]
[1645182633456,0.13800667,2893.5,2893.4,0.00414881]
[1645182633662,0.95961698,2893.5,2893.4,0.00414881]
[1645182633863,1.69568456,2893.5,2893.4,0.00414881]
[1645182634260,1.729734,2893.4,2892.6,0.00680572]
[1645182634460,1.67166667,2893.3,2892.9,0.07883968]
[1645182634660,0.13800667,2893.2,2892.7,0.04092649]
[1645182635460,0.13800667,2893.2,2892.7,0.0428091]
[1645182635964,0.13800667,2893.2,2892.8,0.04035807]
[1645182636212,0.86483,2893.1,2892.8,0.04035807]
[1645182636414,0.13800667,2893.0,2892.8,0.04035807]
[1645182637010,0.13800667,2893.0,2892.8,0.04451896]
[1645182637411,0.13800667,2892.9,2892.8,0.04451896]
[1645182637712,0.0041604,2893.1,2892.8,0.04451896]
[1645182637911,0.13800667,2893.0,2892.8,0.04035807]
[1645182638112,0.14216706,2893.0,2892.8,0.04035807]
[1645182638313,0.00416039,2893.0,2892.8,0.04035807]
[1645182639120,0.50755936,2893.3,2892.8,0.04035807]
[1645182639322,0.13825619,2893.2,2892.8,0.04035807]
[1645182639517,0.00416043,2893.0,2892.8,0.04451892]
[1645182640274,0.13823412,2892.9,2892.8,0.04035807]
[1645182640470,0.50755936,2893.3,2892.8,0.04035807]
[1645182640672,0.00415278,2893.0,2892.8,0.04451126]
[1645182640879,1.00315708,2892.9,2892.8,0.04451126]
[1645182641583,1.00315708,2892.9,2892.8,0.04035807]
[1645182641781,2.06383455,2892.9,2892.8,0.04035807]
[1645182644414,1.00315708,2892.9,2892.8,0.04035807]
[1645182645217,0.13823708,2892.9,2892.8,0.04035807]
[1645182647655,0.13823708,2892.9,2892.8,0.0844457]
[1645182647854,0.13823708,2892.9,2891.9,0.01593208]
[1645182648056,0.86497,2892.7,2891.9,0.01593208]
[1645182648254,0.86497,2892.7,2892.0,0.90728372]
[1645182648661,3.4,2893.0,2892.0,0.90728372]
[1645182648859,3.4,2893.0,2892.0,1.20728372]
[1645182649859,3.4,2893.0,2892.0,0.9232158]
[1645182650059,3.5728,2893.0,2892.0,0.9232158]
[1645182650457,0.8649,2892.9,2892.0,0.9232158]
[1645182651217,0.8649,2892.9,2892.0,0.01593208]
[1645182651412,0.86507,2892.5,2892.0,0.01593208]
[1645182652113,0.00291103,2892.6,2892.0,0.01593208]
[1645182652312,0.2334,2892.7,2892.1,0.84314593]
[1645182652512,0.2334,2892.7,2892.2,0.86478]
[1645182652711,0.00449601,2892.4,2892.2,0.86478]
[1645182652911,0.00449601,2892.4,2892.2,0.01593208]
[1645182653712,3.4,2893.0,2892.2,0.01593208]
[1645182653919,0.00449598,2892.4,2892.2,0.01593208]
[1645182654721,1.70658417,2892.9,2892.2,0.01593208]